lending/lending_fUSD_20260306
["ID","MTS","AMOUNT","RATE_DAILY","PERIOD"]
[407798529,1772808642787,-2178.0,0.00019517,2]
[407798530,1772808642796,-999.0,0.00019517,2]
[407798531,1772808642805,-964.0,0.00019517,2]
[407798532,1772808642814,-500.0,0.00019517,2]
[407798533,1772808642823,-1220.0,0.00019517,2]
[407798534,1772808642832,-2500.0,0.00019642,2]
[407798535,1772808642841,-2500.0,0.00019679,2]
[407798536,1772808642850,-847.0,0.0001968,2]
[407798537,1772808642859,-492.0,0.00019726,2]
[407798538,1772808642868,-265.24292304,0.00019726,2]
[407798539,1772808642878,-250.0,0.00019726,2]
[407798540,1772808642891,-172.74325605,0.00019736,2]
[407798541,1772808642900,-160.0,0.00019736,2]
[407798542,1772808642909,-500.0,0.0001976,2]
[407798543,1772808642918,-236.22884881,0.00019778,2]
[407798544,1772808642929,-800.0,0.00019778,2]
[407798545,1772808642939,-431.0,0.00019778,2]
[407798546,1772808642948,-500.0,0.00019778,2]
[407798547,1772808642959,-1139.0,0.00019778,2]
[407798548,1772808642969,-1376.0,0.00019778,2]
[407798549,1772808642978,-500.0,0.00019778,2]
[407798550,1772808642987,-524.0,0.00019778,2]
[407798551,1772808642996,-707.0,0.00019791,2]
[407798552,1772808643005,-2178.0,0.00019791,2]
[407798553,1772808643015,-999.0,0.00019791,2]
[407798554,1772808643026,-964.0,0.00019791,2]
[407798555,1772808643035,-500.0,0.00019791,2]
[407798556,1772808643045,-1220.0,0.00019791,2]
[407798557,1772808643054,-329.57949648,0.000198,21]
[407798558,1772808643063,-620.0,0.00019801,2]
[407798559,1772808643072,-271.0,0.00019801,2]
[407798560,1772808643081,-144171.41743772,0.0001981,2]
[407798561,1772808643090,-573.0,0.00019898,2]
[407798562,1772808643102,-150.0,0.00019898,2]
[407798563,1772808643111,-150.0,0.00019898,2]
[407798564,1772808643119,-150.0,0.00019898,2]
[407798565,1772808643129,-150.0,0.00019898,2]
[407798566,1772808643138,-150.0,0.00019898,2]
[407798567,1772808643149,-152.0,0.00019898,2]
[407798568,1772808643158,-2148.8308,0.000199,2]
[407798569,1772808643168,-11718.12057429,0.000199,2]
[407798570,1772808643177,-312.91190958,0.000199,2]
[407798571,1772808643186,-1000.0,0.000199,7]
[407798572,1772808643195,-1000.0,0.000199,7]
[407798573,1772808643204,-1000.0,0.000199,7]
[407798574,1772808643214,-1000.0,0.000199,7]
[407798575,1772808643223,-1000.0,0.000199,7]
[407798576,1772808643232,-1000.0,0.000199,7]
[407798577,1772808643241,-1000.0,0.000199,7]
[407798578,1772808643250,-1000.0,0.000199,7]
[407798579,1772808643259,-1000.0,0.000199,7]
[407798580,1772808643268,-1000.0,0.000199,7]
[407798581,1772808643278,-1000.0,0.000199,7]
[407798582,1772808643287,-1000.0,0.000199,7]
[407798583,1772808643296,-1000.0,0.000199,7]
[407798584,1772808643305,-1000.0,0.000199,7]
[407798585,1772808643314,-1054.43000001,0.000199,7]
[407798586,1772808643323,-746.50799756,0.000199,2]
[407798587,1772808643332,-228.86981007,0.00019927,2]
[407798588,1772808643342,-500.0,0.00019973,2]
[407798589,1772808643351,-150.0,0.00019973,2]
[407798590,1772808643360,-534.41020395,0.0001998,2]
[407798591,1772808643370,-2803.0,0.00019983,2]
[407798592,1772808643380,-355.08533532,0.0001999,2]
[407798593,1772808643390,-168.0,0.00019995,2]
[407798594,1772808643399,-151.0,0.00019997,2]
[407798595,1772808643408,-151.0,0.00019997,2]
[407798596,1772808643418,-151.0,0.00019997,2]
[407798597,1772808643427,-682.34,0.00019998,2]
[407798598,1772808643438,-500.0,0.00019998,2]
[407798599,1772808643447,-682.34,0.00019999,2]
[407798600,1772808643456,-682.34,0.00019999,2]
[407798601,1772808643466,-682.34,0.00019999,2]
[407798602,1772808643475,-682.34,0.00019999,2]
[407798603,1772808643484,-682.34,0.00019999,2]
[407798604,1772808643494,-682.34,0.00019999,2]
[407798605,1772808643504,-682.34,0.00019999,2]
[407798606,1772808643513,-682.34,0.00019999,2]
[407798607,1772808643523,-682.34,0.00019999,2]
[407798608,1772808643532,-682.34,0.00019999,2]
[407798609,1772808643542,-682.4,0.00019999,2]
[407798610,1772808643551,-10437.0410423,0.00019999,2]
[407798611,1772808643562,-500.0,0.00019999,2]
[407798612,1772808643572,-255.48475892,0.00019999,2]
[407798613,1772808643583,-150.0,0.00019999,2]
[407798614,1772808643595,-183.31183954,0.00019999,2]
[407798615,1772808643604,-492.0,0.0002,2]
[407798616,1772808643615,-5136587.60428506,0.0002,2]
[407798617,1772808643634,-2913.05812294,0.0002,2]
[407798629,1772808644428,-987201.17312459,0.0002,2]
[407798630,1772808644438,-130983.54231026,0.0002,2]
[407798631,1772808644447,-2953.57487299,0.0002,7]
[407798632,1772808644457,-532.21530917,0.0002,7]
[407798633,1772808644467,-197.91,0.0002,120]
[407798634,1772808644477,-12979.23134695,0.0002,2]
[407798635,1772808644487,-184.41882125,0.0002,2]
[407798637,1772808644496,-377.62,0.0002,7]
[407798639,1772808644506,-2708.6540251,0.0002,2]
[407798640,1772808644515,-10000.0,0.0002,2]
[407798641,1772808644526,-19969.7894301,0.0002,2]
[407798642,1772808644535,-2127.9105697,0.0002,2]
[407798643,1772808644546,-79296.8248331,0.0002,2]
[407798644,1772808644555,-21235.3009655,0.0002,2]
[407798645,1772808644564,-151.0,0.0002,2]
[407798646,1772808644574,-4687.2885804,0.0002,2]
[407798647,1772808644583,-290.35736663,0.0002,120]
[407798648,1772808644594,-185.9718692,0.0002,2]
[407798649,1772808644604,-162.0,0.0002,3]
[407798650,1772808644615,-825.0,0.0002,30]
[407798651,1772808644624,-1000.0,0.0002,7]
[407798652,1772808644634,-900.0,0.00020006,2]
[407798653,1772808644644,-3292.0,0.00020041,2]
[407798654,1772808644655,-800.0,0.00020052,2]
[407798655,1772808644665,-500.0,0.00020052,2]
[407798656,1772808644675,-431.0,0.00020052,2]
[407798658,1772808644684,-1139.0,0.00020052,2]
[407798660,1772808644693,-246.79273833,0.00020052,2]
[407798662,1772808644703,-1376.0,0.00020052,2]
[407798665,1772808644712,-524.0,0.00020052,2]
[407798666,1772808644721,-707.0,0.00020065,2]
[407798669,1772808644730,-2178.0,0.00020065,2]
[407798671,1772808644740,-999.0,0.00020065,2]
[407798672,1772808644749,-964.0,0.00020065,2]
[407798674,1772808644759,-266.60867263,0.00020065,2]
[407798676,1772808644768,-1220.0,0.00020065,2]
[407798678,1772808644779,-780.83,0.00020139,2]
[407798680,1772808644788,-168.0,0.00020146,2]
[407798682,1772808644797,-166.66,0.00020151,2]
[407798684,1772808644806,-168.0,0.00020157,2]
[407798686,1772808644815,-1600.0,0.00020174,2]
[407798688,1772808644824,-876.76,0.00020186,2]
[407798690,1772808644832,-527.87464689,0.0002019,2]
[407798692,1772808644842,-3000.0,0.00020227,2]
[407798694,1772808644851,-492.0,0.00020274,2]
[407798695,1772808644860,-350.0,0.00020274,2]
[407798696,1772808644870,-1000.9885,0.00020279,120]
[407798697,1772808644883,-160.0,0.00020303,2]
[407798698,1772808644894,-168.0,0.0002031,2]
[407798699,1772808644904,-800.0,0.00020326,2]
[407798700,1772808644915,-353.05265083,0.00020326,2]
[407798701,1772808644926,-431.0,0.00020326,2]
[407798702,1772808644936,-1139.0,0.00020326,2]
[407798703,1772808644945,-1376.0,0.00020326,2]
[407798704,1772808644957,-524.0,0.00020326,2]
[407798705,1772808644966,-707.0,0.00020339,2]
[407798706,1772808644976,-2178.0,0.00020339,2]
[407798707,1772808644985,-999.0,0.00020339,2]
[407798708,1772808644995,-964.0,0.00020339,2]
[407798709,1772808645004,-1220.0,0.00020339,2]
[407798710,1772808645013,-171.43380902,0.00020387,2]
[407798711,1772808645023,-162.0,0.000204,120]
[407798712,1772808645035,-165.0,0.000204,120]
[407798713,1772808645045,-780.83,0.00020413,2]
[407798714,1772808645056,-168.0,0.00020429,2]
[407798715,1772808645065,-168.0,0.00020457,2]
[407798716,1772808645074,-876.76,0.0002046,2]
[407798717,1772808645083,-444.3243859,0.00020492,2]
[407798718,1772808645093,-942.99956491,0.00020521,2]
[407798719,1772808645103,-250.0,0.00020521,2]
[407798720,1772808645113,-168.0,0.00020536,2]
[407798721,1772808645123,-1000.0,0.00020543,2]
[407798722,1772808645133,-492.0,0.00020548,2]
[407798723,1772808645143,-20002.35,0.00020572,7]
[407798724,1772808645159,-168.0,0.00020578,2]
[407798725,1772808645168,-168.0,0.00020583,2]
[407798726,1772808645178,-594.17,0.00020593,7]
[407798727,1772808645188,-800.0,0.000206,2]
[407798728,1772808645198,-431.0,0.000206,2]
[407798730,1772808645207,-1139.0,0.000206,2]
[407798732,1772808645218,-1376.0,0.000206,2]
[407798735,1772808645227,-524.0,0.000206,2]
[407798736,1772808645238,-707.0,0.00020613,2]
[407798738,1772808645255,-2178.0,0.00020613,2]
[407798739,1772808645280,-999.0,0.00020613,2]
[407798740,1772808645291,-964.0,0.00020613,2]
[407798741,1772808645300,-1220.0,0.00020613,2]
[407798742,1772808645309,-151.04766822,0.00020648,5]
[407798743,1772808645318,-189.44875125,0.00020663,2]
[407798744,1772808645327,-151.0,0.0002067,2]
[407798745,1772808645336,-780.83,0.00020687,2]
[407798746,1772808645345,-876.76,0.00020734,2]
[407798747,1772808645355,-1088.87470879,0.00020775,2]
[407798748,1772808645364,-435.25,0.00020816,2]
[407798749,1772808645373,-492.0,0.00020822,2]
[407798750,1772808645382,-450.0,0.00020822,2]
[407798751,1772808645392,-800.0,0.00020874,2]
[407798752,1772808645401,-431.0,0.00020874,2]
[407798753,1772808645411,-1139.0,0.00020874,2]
[407798754,1772808645421,-1376.0,0.00020874,2]
[407798755,1772808645431,-524.0,0.00020874,2]
[407798756,1772808645441,-707.0,0.00020887,2]
[407798757,1772808645450,-2178.0,0.00020887,2]
[407798758,1772808645460,-999.0,0.00020887,2]
[407798759,1772808645469,-964.0,0.00020887,2]
[407798760,1772808645479,-1220.0,0.00020887,2]
[407798761,1772808645488,-168.0,0.00020889,2]
[407798762,1772808645498,-9138.69721681,0.000209,30]
[407798763,1772808645509,-2803.0,0.00020915,2]
[407798764,1772808645520,-780.83,0.00020961,2]
[407798765,1772808645532,-2629.66672288,0.00021,7]
[407798766,1772808645541,-160.0,0.00021,7]
[407798767,1772808645551,-400.0,0.00021,2]
[407798768,1772808645560,-876.76,0.00021008,2]
[407798769,1772808645570,-350.0,0.00021068,2]
[407798770,1772808645579,-492.0,0.00021096,2]
[407798771,1772808645587,-800.0,0.00021148,2]
[407798772,1772808645597,-431.0,0.00021148,2]
[407798773,1772808645607,-1139.0,0.00021148,2]
[407798774,1772808645616,-1376.0,0.00021148,2]
[407798775,1772808645625,-524.0,0.00021148,2]
[407798777,1772808645634,-707.0,0.00021161,2]
[407798778,1772808645643,-2178.0,0.00021161,2]
[407798779,1772808645652,-999.0,0.00021161,2]
[407798781,1772808645662,-964.0,0.00021161,2]
[407798783,1772808645671,-1220.0,0.00021161,2]
[407798785,1772808645680,-15001.76,0.00021189,7]
[407798787,1772808645689,-445.63,0.00021211,7]
[407798789,1772808645698,-780.83,0.00021235,2]
[407798791,1772808645707,-833.54,0.00021282,2]
[407798793,1772808645716,-492.0,0.0002137,2]
[407798795,1772808645725,-550.0,0.0002137,2]
[407798797,1772808645734,-900.0,0.00021376,2]
[407798799,1772808645743,-162.0,0.0002142,120]
[407798801,1772808645753,-800.0,0.00021421,2]
[407798803,1772808645762,-431.0,0.00021421,2]
[407798805,1772808645771,-1139.0,0.00021421,2]
[407798806,1772808645782,-1376.0,0.00021421,2]
[407798808,1772808645791,-524.0,0.00021421,2]
[407798810,1772808645801,-707.0,0.00021435,2]
[407798811,1772808645810,-2178.0,0.00021435,2]
[407798813,1772808645820,-999.0,0.00021435,2]
[407798814,1772808645829,-964.0,0.00021435,2]
[407798816,1772808645838,-1220.0,0.00021435,2]
[407798817,1772808645847,-57834.94137492,0.000215,2]
[407798818,1772808645858,-5532.0,0.000215,3]
[407798819,1772808645867,-557.78,0.00021509,2]
[407798820,1772808645876,-252.0,0.00021539,7]
[407798821,1772808645885,-2803.0,0.00021555,2]
[407798822,1772808645899,-450.0,0.00021616,2]
[407798823,1772808645911,-441.81,0.00021632,2]
[407798824,1772808645920,-441.81,0.00021632,2]
[407798825,1772808645929,-492.0,0.00021644,2]
[407798826,1772808645939,-435.25,0.00021683,2]
[407798827,1772808645950,-800.0,0.00021695,2]
[407798828,1772808645960,-431.0,0.00021695,2]
[407798829,1772808645976,-1139.0,0.00021695,2]
[407798830,1772808645988,-1376.0,0.00021695,2]
[407798831,1772808645998,-524.0,0.00021695,2]
[407798832,1772808646010,-707.0,0.00021709,2]
[407798833,1772808646020,-2178.0,0.00021709,2]
[407798834,1772808646033,-999.0,0.00021709,2]
[407798835,1772808646042,-964.0,0.00021709,2]
[407798836,1772808646052,-1220.0,0.00021709,2]
[407798837,1772808646061,-299.99,0.00021757,7]
[407798838,1772808646070,-516.46,0.00021757,2]
[407798839,1772808646079,-154.17,0.00021757,2]
[407798840,1772808646088,-150.99,0.00021757,2]
[407798841,1772808646097,-7979.49,0.00021757,2]
[407798842,1772808646106,-9999.99,0.00021757,2]
[407798843,1772808646115,-10001.17,0.00021807,7]
[407798844,1772808646125,-604.8,0.00021826,2]
[407798845,1772808646135,-2328.8186392,0.00021828,2]
[407798846,1772808646145,-492.0,0.00021918,2]
[407798847,1772808646155,-5000.0,0.00021918,2]
[407798848,1772808646165,-500.0,0.00021918,2]
[407798849,1772808646176,-650.0,0.00021918,2]
[407798850,1772808646185,-160.0155615,0.00021918,2]
[407798851,1772808646195,-219.68,0.00021918,2]
[407798852,1772808646207,-10945.866606,0.00021945,30]
[407798853,1772808646218,-800.0,0.00021969,2]
[407798854,1772808646228,-1139.0,0.00021969,2]
[407798855,1772808646238,-431.0,0.00021969,2]
[407798856,1772808646247,-1376.0,0.00021969,2]
[407798857,1772808646257,-524.0,0.00021969,2]
[407798858,1772808646267,-707.0,0.00021983,2]
[407798859,1772808646278,-2178.0,0.00021983,2]
[407798860,1772808646287,-999.0,0.00021983,2]
[407798861,1772808646296,-964.0,0.00021983,2]
[407798862,1772808646305,-1220.0,0.00021983,2]
[407798863,1772808646314,-371837.52203362,0.00022,4]
[407798864,1772808646323,-803.64442162,0.00022,7]
[407798865,1772808646332,-1102.1,0.00022,30]
[407798866,1772808646342,-5532.0,0.00022,5]
[407798867,1772808646351,-4609.0,0.00022044,2]
[407798868,1772808646361,-1008.0,0.00022099,2]
[407798869,1772808646370,-939.97,0.00022114,30]
[407798870,1772808646380,-550.0,0.00022164,2]
[407798871,1772808646389,-1600.0,0.00022191,2]
[407798872,1772808646399,-492.0,0.00022192,2]
[407798873,1772808646408,-8246.514697,0.00022227,30]
[407798874,1772808646417,-519.6296759,0.00022236,2]
[407798875,1772808646427,-800.0,0.00022243,2]
[407798876,1772808646436,-1139.0,0.00022243,2]
[407798877,1772808646445,-431.0,0.00022243,2]
[407798878,1772808646454,-1376.0,0.00022243,2]
[407798879,1772808646464,-524.0,0.00022243,2]
[407798880,1772808646474,-707.0,0.00022257,2]
[407798881,1772808646483,-2178.0,0.00022257,2]
[407798882,1772808646492,-999.0,0.00022257,2]
[407798883,1772808646502,-964.0,0.00022257,2]
[407798884,1772808646511,-1220.0,0.00022257,2]
[407798885,1772808646520,-618.62,0.00022279,2]
[407798886,1772808646533,-1000.0,0.0002241,2]
[407798887,1772808646542,-150.0,0.00022445,7]
[407798888,1772808646551,-161.0,0.00022445,7]
[407798889,1772808646561,-492.0,0.00022466,2]
[407798890,1772808646570,-750.0,0.00022466,2]
[407798891,1772808646579,-825.0,0.00022477,30]
[407798892,1772808646588,-162.0,0.00022491,120]
[407798893,1772808646598,-847.0,0.0002251,2]
[407798894,1772808646607,-820.51044812,0.00022517,2]
[407798895,1772808646615,-1145.0,0.00022517,2]
[407798896,1772808646624,-300.0643985,0.00022517,2]
[407798897,1772808646634,-1381.7009944,0.00022517,2]
[407798898,1772808646643,-540.23385157,0.00022517,2]
[407798899,1772808646652,-707.0,0.0002253,2]
[407798900,1772808646662,-2178.0,0.0002253,2]
[407798901,1772808646670,-999.0,0.0002253,2]
[407798902,1772808646679,-964.0,0.0002253,2]
[407798903,1772808646688,-1220.0,0.0002253,2]
[407798904,1772808646697,-435.25,0.00022551,2]
[407798905,1772808646707,-401.79985854,0.00022712,2]
[407798906,1772808646716,-492.0,0.0002274,2]
[407798907,1772808646726,-707.0,0.00022804,2]
[407798908,1772808646735,-2178.0,0.00022804,2]
[407798909,1772808646744,-999.0,0.00022804,2]
[407798910,1772808646753,-964.0,0.00022804,2]
[407798911,1772808646763,-1220.0,0.00022804,2]
[407798912,1772808646772,-2235.93978744,0.00022889,15]
[407798913,1772808646784,-2000.0,0.000229,2]
[407798914,1772808646793,-640.64716498,0.00023,7]
[407798915,1772808646802,-1000.0,0.00023,14]
[407798916,1772808646811,-305398.22480505,0.00023,2]
[407798917,1772808646821,-2122.53781242,0.00023,2]
[407798918,1772808646831,-160.0,0.00023,3]
[407798919,1772808646840,-450.0,0.00023,2]
[407798920,1772808646849,-160.0,0.00023,2]
[407798921,1772808646858,-492.0,0.00023013,2]
[407798922,1772808646867,-850.0,0.00023014,2]
[407798923,1772808646876,-221.0,0.00023077,14]
[407798924,1772808646891,-707.0,0.00023078,2]
[407798925,1772808646900,-2178.0,0.00023078,2]
[407798926,1772808646909,-999.0,0.00023078,2]
[407798927,1772808646918,-964.0,0.00023078,2]
[407798928,1772808646929,-1220.0,0.00023078,2]
[407798929,1772808646939,-200.0,0.00023186,4]
[407798930,1772808646948,-1045.8754516,0.00023219,2]
[407798931,1772808646958,-492.0,0.00023287,2]
[407798932,1772808646968,-1500.0,0.00023288,2]
[407798933,1772808646977,-1000.0,0.00023288,2]
[407798934,1772808646986,-707.0,0.00023352,2]
[407798935,1772808646995,-2178.0,0.00023352,2]
[407798936,1772808647004,-999.0,0.00023352,2]
[407798937,1772808647014,-964.0,0.00023352,2]
[407798938,1772808647023,-1220.0,0.00023352,2]
[407798939,1772808647034,-435.25,0.00023418,2]
[407798940,1772808647043,-492.0,0.00023561,2]
[407798941,1772808647052,-950.0,0.00023562,2]
[407798942,1772808647061,-162.0,0.00023616,120]
[407798943,1772808647070,-708.29337837,0.00023626,2]
[407798944,1772808647079,-2186.88771099,0.00023626,2]
[407798945,1772808647088,-1003.0,0.00023626,2]
[407798946,1772808647098,-975.58478105,0.00023626,2]
[407798947,1772808647107,-1243.10830012,0.00023626,2]
[407798948,1772808647116,-492.0,0.00023835,2]
[407798949,1772808647126,-233.366357,0.00023938,2]
[407798950,1772808647135,-160.0,0.00024,7]
[407798951,1772808647144,-272.0,0.00024048,14]
[407798952,1772808647154,-2803.0,0.00024076,3]
[407798953,1772808647163,-507.0,0.00024109,2]
[407798954,1772808647172,-310.7092941,0.0002411,2]
[407798955,1772808647182,-17693.5132242,0.0002417,2]
[407798956,1772808647191,-4455.8623136,0.00024171,2]
[407798957,1772808647201,-1600.0,0.00024208,2]
[407798958,1772808647211,-6453.0,0.00024247,2]
[407798959,1772808647220,-4738.2361052,0.00024254,2]
[407798960,1772808647230,-252.71125359,0.00024315,2]
[407798961,1772808647239,-2574.08061931,0.00024351,18]
[407798962,1772808647248,-171.43380902,0.0002445,2]
[407798963,1772808647257,-186.59739324,0.0002463,2]
[407798964,1772808647267,-500.0,0.0002464,2]
[407798965,1772808647276,-2000.0,0.00024657,2]
[407798966,1772808647285,-1500.0,0.00024658,2]
[407798967,1772808647295,-1000.0,0.00024658,2]
[407798968,1772808647304,-192.61,0.00024658,2]
[407798969,1772808647313,-986.0,0.00024858,10]
[407798970,1772808647323,-157.0,0.00024872,21]
[407798971,1772808647332,-160.0,0.000249,3]
[407798972,1772808647342,-75847.101784,0.000249,2]
[407798973,1772808647351,-219.68,0.00024918,2]
[407798974,1772808647360,-825.0,0.00024953,60]
[407798975,1772808647370,-7153.19144206,0.00025,2]
[407798976,1772808647379,-160.0,0.00025,30]
[407798977,1772808647388,-500.0,0.00025,2]
[407798978,1772808647397,-151.0,0.00025,5]
[407798979,1772808647407,-939.97,0.00025049,30]
[407798980,1772808647416,-3947.9564393,0.00025101,2]
[407798981,1772808647425,-994.2372716,0.00025102,2]
[407798982,1772808647435,-604.8,0.00025184,30]
[407798983,1772808647444,-571.0,0.00025188,10]
[407798984,1772808647453,-1057.2433809,0.00025204,2]
[407798985,1772808647462,-150.0,0.00025366,2]
[407798986,1772808647471,-150.0,0.00025366,2]
[407798987,1772808647480,-150.0,0.00025366,2]
[407798988,1772808647489,-150.0,0.00025366,2]
[407798989,1772808647498,-150.0,0.00025366,2]
[407798990,1772808647507,-150.0,0.00025366,2]
[407798991,1772808647516,-150.0,0.00025366,2]
[407798992,1772808647526,-150.0,0.00025366,2]
[407798993,1772808647535,-150.0,0.00025366,2]
[407798994,1772808647544,-150.0,0.00025366,2]
[407798995,1772808647553,-150.0,0.00025366,2]
[407798996,1772808647562,-150.0,0.00025366,2]
[407798997,1772808647571,-150.0,0.00025366,2]
[407798998,1772808647580,-160.519,0.00025366,2]
[407798999,1772808647589,-500.0,0.00025379,2]
[407799000,1772808647599,-49724.35060446,0.0002539,2]
[407799001,1772808647608,-151.0,0.0002539,2]
[407799002,1772808647617,-161.568511,0.0002539,2]
[407799003,1772808647627,-1008.0,0.00025499,30]
[407799004,1772808647636,-180.98,0.00025611,30]
[407799005,1772808647645,-150.0,0.00025663,2]
[407799006,1772808647654,-2803.0,0.00025691,3]
[407799007,1772808647663,-270.0,0.00025803,2]
[407799008,1772808647672,-150.0,0.00025803,2]
[407799009,1772808647681,-150.188,0.00025803,2]
[407799010,1772808647690,-150.166,0.00025803,2]
[407799011,1772808647699,-150.109,0.00025803,2]
[407799012,1772808647709,-150.0,0.00025803,2]
[407799013,1772808647718,-150.0,0.00025803,2]
[407799014,1772808647729,-150.0,0.00025803,2]
[407799015,1772808647738,-150.379,0.00025803,2]
[407799016,1772808647747,-1042.0,0.00025803,2]
[407799017,1772808647756,-751.844,0.00025803,2]
[407799018,1772808647766,-1341.0,0.00025803,2]
[407799019,1772808647776,-3502.0,0.00025803,2]
[407799020,1772808647786,-151.536,0.00025803,2]
[407799021,1772808647795,-1279.0,0.00025803,2]
[407799022,1772808647804,-414.0,0.00025803,2]
[407799023,1772808647813,-3746.0,0.00025803,2]
[407799024,1772808647823,-2596.46501476,0.00025813,21]
[407799025,1772808647832,-194.0,0.00025918,21]
[407799026,1772808647841,-150.0,0.00025977,2]
[407799027,1772808647850,-706.42643953,0.00025977,2]
[407799028,1772808647859,-150.0,0.00025977,2]
[407799029,1772808647868,-17673.01857541,0.00025977,2]
[407799030,1772808647878,-150.0,0.00025977,2]
[407799031,1772808647889,-1565.90123891,0.00025977,2]
[407799032,1772808647899,-151.0,0.00025977,2]
[407799033,1772808647908,-151.0,0.00025977,2]
[407799034,1772808647916,-151.0,0.00025977,2]
[407799035,1772808647926,-671.708153,0.00025977,2]
[407799036,1772808647935,-671.708153,0.00025977,2]
[407799037,1772808647944,-671.708153,0.00025977,2]
[407799038,1772808647953,-671.708153,0.00025977,2]
[407799039,1772808647964,-2617.21,0.00025985,2]
[407799040,1772808647974,-282.611166,0.00025985,2]
[407799041,1772808647983,-282.611166,0.00025985,2]
[407799042,1772808647992,-282.611166,0.00025985,2]
[407799043,1772808648001,-282.611166,0.00025985,2]
[407799044,1772808648010,-225.902031,0.00025985,2]
[407799045,1772808648019,-225.902031,0.00025985,2]
[407799046,1772808648030,-225.902031,0.00025985,2]
[407799047,1772808648040,-225.902031,0.00025985,2]
[407799048,1772808648049,-270.074579,0.00025985,2]
[407799049,1772808648058,-270.074579,0.00025985,2]
[407799050,1772808648068,-270.074579,0.00025985,2]
[407799051,1772808648077,-270.074579,0.00025985,2]
[407799052,1772808648086,-1068.578217,0.00025985,2]
[407799053,1772808648095,-1068.578217,0.00025985,2]
[407799054,1772808648105,-1068.578217,0.00025985,2]
[407799055,1772808648115,-1068.578217,0.00025985,2]
[407799056,1772808648124,-2803.0,0.00026011,3]
[407799057,1772808648133,-2000.0,0.00026027,2]
[407799058,1772808648142,-500.0,0.00026141,2]
[407799059,1772808648151,-150.0,0.000262,2]
[407799060,1772808648160,-374.940877,0.000262,10]
[407799061,1772808648170,-1102.1,0.00026207,30]
[407799062,1772808648179,-2725.86108144,0.00026339,2]
[407799063,1772808648188,-2000.0,0.000266,2]
[407799064,1772808648197,-9035.0,0.0002667,2]
[407799065,1772808648207,-9000.0,0.00026844,2]
[407799066,1772808648216,-1499.71757192,0.00026844,2]
[407799067,1772808648225,-252.67365585,0.00026844,2]
[407799068,1772808648234,-3000.0,0.00026844,2]
[407799069,1772808648243,-2500.0,0.00026844,2]
[407799070,1772808648251,-250.0,0.00026844,2]
[407799071,1772808648260,-3000.0,0.00026844,2]
[407799072,1772808648269,-250.0,0.00026844,2]
[407799073,1772808648280,-3000.0,0.00026844,2]
[407799074,1772808648290,-250.0,0.00026844,2]
[407799075,1772808648299,-1000.0,0.00026844,2]
[407799076,1772808648309,-1000.0,0.00026844,2]
[407799077,1772808648318,-1000.0,0.00026844,2]
[407799078,1772808648327,-2500.0,0.00026844,2]
[407799079,1772808648336,-1000.0,0.00026844,2]
[407799080,1772808648564,-2500.0,0.00026844,2]
[407799081,1772808648605,-1000.0,0.00026844,2]
[407799082,1772808648614,-2500.0,0.00026844,2]
[407799083,1772808648624,-1000.0,0.00026844,2]